[Event "Paracin Open 2022"]
[Site "Paracin"]
[Date "2022.07.11"]
[Round "4.7"]
[White "Kushagra Mohan"]
[Black "Arjun Kalyan"]
[Result "0-1"]
[ECO "C45"]
[WhiteElo "2359"]
[BlackElo "2499"]
[Annotator "ChessBase"]
[PlyCount "184"]
[EventDate "2022.07.08"]
[EventCountry "SRB"]
[SourceTitle "playchess.com"]
[Source "ChessBase"]
[SourceQuality "1"]
[TimeControl "5400+30"]

1. e4 {[%emt 0:02:20]} e5 {[%emt 0:00:05]} 2. Nf3 {[%emt 0:00:03]} Nc6 {[%emt 0:00:04]} 3. d4 {[%emt 0:00:02]} exd4 {[%emt 0:00:18]} 4. Nxd4 {[%emt 0:00:03]} Nf6 {[%emt 0:00:09]} 5. Nxc6 {[%emt 0:00:04]} bxc6 {[%emt 0:00:05]} 6. e5 {[%emt 0:00:03]} Qe7 {[%emt 0:00:12]} 7. Qe2 {[%emt 0:00:04]} Nd5 {[%emt 0:00:05]} 8. c4 {[%emt 0:00:04]} Ba6 {[%emt 0:00:13]} 9. Nd2 {[%emt 0:00:05]} g6 {[%emt 0:00:37]} 10. Nf3 {[%emt 0:00:16]} Qb4+ {[%emt 0:00:45]} 11. Kd1 {[%emt 0:00:14]} Ne7 {[%emt 0:00:19]} 12. Qc2 {[%emt 0:02:23]} c5 {[%emt 0:02:48]} 13. Bd3 {[%emt 0:04:36]} Bg7 {[%emt 0:05:14]} 14. Bd2 {[%emt 0:05:19]} Qb6 {[%emt 0:00:41]} 15. Bc3 {[%emt 0:00:50]} O-O {[%emt 0:04:19]} 16. Re1 {[%emt 0:01:28]} Bb7 {[%emt 0:05:53]} 17. Be4 {[%emt 0:06:01]} d5 {[%emt 0:11:39]} 18. exd6 {[%emt 0:01:59]} Qxd6+ {[%emt 0:07:42]} 19. Kc1 {[%emt 0:07:45]} Bxc3 {[%emt 0:05:35]} 20. Qxc3 {[%emt 0:01:16]} Bxe4 {[%emt 0:00:14]} 21. Rxe4 {[%emt 0:00:05]} Nc6 {[%emt 0:03:18]} 22. Qd2 {[%emt 0:02:29]} Qf6 {[%emt 0:06:13]} 23. Qg5 {[%emt 0:02:44]} Qg7 {[%emt 0:02:42]} 24. Qxc5 {[%emt 0:02:38]} Rab8 {[%emt 0:00:24]} 25. Ne5 {[%emt 0:00:41]} Rb6 {[%emt 0:10:03]} 26. Rb1 {[%emt 0:01:38]} Re8 {[%emt 0:04:55]} 27. f4 {[%emt 0:01:48]} Nb4 {[%emt 0:01:58]} 28. Re3 {[%emt 0:13:19]} Qh6 {[%emt 0:10:26]} 29. a3 {[%emt 0:09:15]} Qxf4 {[%emt 0:00:51]} 30. axb4 {[%emt 0:00:05]} Rbe6 {[%emt 0:01:23]} 31. g3 {[%emt 0:02:31]} Qf1+ {[%emt 0:00:18]} 32. Kc2 {[%emt 0:00:33]} Qf5+ {[%emt 0:00:12]} 33. Rd3 {[%emt 0:04:02]} Rxe5 {[%emt 0:00:14]} 34. Qd4 {[%emt 0:00:27]} Re4 {[%emt 0:06:15]} 35. Qc3 {[%emt 0:00:20]} Re3 {[%emt 0:01:11]} 36. Rbd1 {[%emt 0:00:35]} Rd8 {[%emt 0:00:20]} 37. b5 {[%emt 0:01:39]} h5 {[%emt 0:00:24]} 38. R1d2 {[%emt 0:02:13]} Qe4 {[%emt 0:00:36]} 39. Rd1 {[%emt 0:02:09]} Kh7 {[%emt 0:00:26]} 40. R1d2 {[%emt 0:01:09]} Rd7 {[%emt 0:01:12]} 41. c5 {[%emt 0:01:28]} Qa4+ {[%emt 0:04:28]} 42. b3 {[%emt 0:01:07]} Qa2+ {[%emt 0:00:01]} 43. Kc1 {[%emt 0:00:20]} Re1+ {[%emt 0:03:14]} 44. Rd1 {[%emt 0:00:04]} Rxd3 {[%emt 0:00:14]} 45. Qxd3 {[%emt 0:00:08]} Qa3+ {[%emt 0:01:05]} 46. Kb1 {[%emt 0:01:12]} Rxd1+ {[%emt 0:00:08]} 47. Qxd1 {[%emt 0:00:04]} Qxc5 {[%emt 0:00:02]} 48. Qe2 {[%emt 0:00:29]} Kg7 {[%emt 0:00:29]} 49. Qb2+ {[%emt 0:00:08]} Kf8 {[%emt 0:00:14]} 50. Qe2 {[%emt 0:00:16]} Kg7 {[%emt 0:00:53]} 51. Qb2+ {[%emt 0:00:20]} f6 {[%emt 0:00:10]} 52. Qe2 {[%emt 0:00:03]} Qe5 {[%emt 0:01:42]} 53. Qc4 {[%emt 0:00:11]} g5 {[%emt 0:00:20]} 54. Ka2 {[%emt 0:01:02]} h4 {[%emt 0:00:18]} 55. Qd3 {[%emt 0:01:20]} Kh6 {[%emt 0:00:17]} 56. Qf3 {[%emt 0:00:31]} Kg6 {[%emt 0:01:28]} 57. Qd3+ {[%emt 0:03:00]} f5 {[%emt 0:01:49]} 58. Qd7 {[%emt 0:01:24]} hxg3 {[%emt 0:00:51]} 59. hxg3 {[%emt 0:00:03]} Qe2+ {[%emt 0:00:59]} 60. Ka3 {[%emt 0:00:20]} Qe5 {[%emt 0:00:03]} 61. Ka2 {[%emt 0:00:58]} g4 {[%emt 0:00:13]} 62. Qd3 {[%emt 0:01:15]} Qc5 {[%emt 0:00:17]} 63. Qe2 {[%emt 0:00:09]} Kf6 {[%emt 0:00:09]} 64. Qd2 {[%emt 0:01:25]} Ke7 {[%emt 0:00:28]} 65. Qd3 {[%emt 0:01:09]} Qe5 {[%emt 0:00:19]} 66. b4 {[%emt 0:00:30]} Qe4 {[%emt 0:00:51]} 67. Qc3 {[%emt 0:00:22]} Qd5+ {[%emt 0:00:13]} 68. Kb2 {[%emt 0:00:10]} Kd7 {[%emt 0:00:16]} 69. Qg7+ {[%emt 0:01:45]} Kc8 {[%emt 0:00:01]} 70. Qf8+ {[%emt 0:00:06]} Kb7 {[%emt 0:00:04]} 71. Qe8 {[%emt 0:00:11]} Qg2+ {[%emt 0:00:30]} 72. Kc1 {[%emt 0:01:19]} Qe4 {[%emt 0:00:37]} 73. Qd7 {[%emt 0:00:08]} Kb6 {[%emt 0:00:16]} 74. Qc8 {[%emt 0:00:25]} Kxb5 {[%emt 0:02:31]} 75. Qb8+ {[%emt 0:00:12]} Kc6 {[%emt 0:00:57]} 76. Qa8+ {[%emt 0:00:29]} Kd7 {[%emt 0:00:06]} 77. Qf8 {[%emt 0:00:03]} a6 {[%emt 0:00:24]} 78. Kd2 {[%emt 0:00:19]} Qe6 {[%emt 0:00:23]} 79. Kc3 {[%emt 0:00:20]} Qc6+ {[%emt 0:00:09]} 80. Kb3 {[%emt 0:00:09]} Qd5+ {[%emt 0:00:40]} 81. Kc3 {[%emt 0:00:36]} Qe5+ {[%emt 0:00:03]} 82. Kc2 {[%emt 0:00:14]} Qe2+ {[%emt 0:00:02]} 83. Kc3 {[%emt 0:00:18]} Qe5+ {[%emt 0:00:19]} 84. Kc2 {[%emt 0:00:05]} Qe4+ {[%emt 0:00:57]} 85. Kc3 {[%emt 0:00:11]} Kc6 {[%emt 0:00:41]} 86. Qa8+ {[%emt 0:00:19]} Kb6 {[%emt 0:00:24]} 87. Qb8+ {[%emt 0:00:09]} Qb7 {[%emt 0:00:04]} 88. Qf8 {[%emt 0:00:05]} Qf3+ {[%emt 0:00:07]} 89. Kc4 {[%emt 0:00:30]} Kb7 {[%emt 0:00:09]} 90. Qf7 {[%emt 0:00:55]} Qe4+ {[%emt 0:00:24]} 91. Kc3 {[%emt 0:00:12]} f4 {[%emt 0:01:12]} 92. gxf4 {[%emt 0:00:46]} g3 {[%emt 0:00:01]} 0-1

[Event "Paracin Open 2022"]
[Site "Paracin"]
[Date "2022.07.11"]
[Round "4.8"]
[White "Suleymenov, Alisher"]
[Black "Taspinar, Yanki"]
[Result "1-0"]
[ECO "D31"]
[WhiteElo "2467"]
[BlackElo "2311"]
[Annotator "ChessBase"]
[PlyCount "104"]
[EventDate "2022.07.08"]
[EventCountry "SRB"]
[SourceTitle "playchess.com"]
[Source "ChessBase"]
[SourceQuality "1"]
[TimeControl "5400+30"]

1. d4 {[%emt 0:00:03]} d5 {[%emt 0:00:18]} 2. c4 {[%emt 0:00:06]} e6 {[%emt 0:00:05]} 3. Nc3 {[%emt 0:00:04]} c6 {[%emt 0:00:05]} 4. e4 {[%emt 0:00:06]} dxe4 {[%emt 0:00:06]} 5. Nxe4 {[%emt 0:00:04]} Bb4+ {[%emt 0:00:38]} 6. Nc3 {[%emt 0:00:05]} c5 {[%emt 0:08:48]} 7. Nf3 {[%emt 0:00:20]} Nf6 {[%emt 0:04:26]} 8. Be2 {[%emt 0:00:05]} Nc6 {[%emt 0:10:58]} 9. Be3 {[%emt 0:00:06]} O-O {[%emt 0:02:11]} 10. dxc5 {[%emt 0:13:40]} Qxd1+ {[%emt 0:22:43]} 11. Rxd1 {[%emt 0:00:09]} Ng4 {[%emt 0:03:24]} 12. Bd2 {[%emt 0:11:37]} Bxc5 {[%emt 0:00:55]} 13. Ne4 {[%emt 0:01:59]} Be7 {[%emt 0:01:32]} 14. Bc3 {[%emt 0:09:47]} Nf6 {[%emt 0:16:22]} 15. Nxf6+ {[%emt 0:17:23]} gxf6 {[%emt 0:04:48]} 16. Bd3 {[%emt 0:03:13]} e5 {[%emt 0:01:24]} 17. h3 {[%emt 0:00:33]} Be6 {[%emt 0:00:30]} 18. b3 {[%emt 0:00:45]} a5 {[%emt 0:04:02]} 19. a4 {[%emt 0:04:18]} Rad8 {[%emt 0:10:58]} 20. Be4 {[%emt 0:03:58]} Bb4 {[%emt 0:00:05]} 21. Bxb4 {[%emt 0:01:33]} Nxb4 {[%emt 0:00:02]} 22. Ke2 {[%emt 0:02:37]} Na2 {[%emt 0:04:25]} 23. Ke3 {[%emt 0:02:21]} f5 {[%emt 0:01:47]} 24. Rxd8 {[%emt 0:02:56]} f4+ {[%emt 0:01:14]} 25. Ke2 {[%emt 0:01:35]} Rxd8 {[%emt 0:00:07]} 26. Nxe5 {[%emt 0:00:44]} Nc3+ {[%emt 0:00:25]} 27. Kf3 {[%emt 0:00:01]} f6 {[%emt 0:01:00]} 28. Ng4 {[%emt 0:02:50]} Nxe4 {[%emt 0:00:34]} 29. Kxe4 {[%emt 0:00:03]} f5+ {[%emt 0:00:21]} 30. Ke5 {[%emt 0:00:03]} fxg4 {[%emt 0:00:04]} 31. Kxe6 {[%emt 0:00:03]} g3 {[%emt 0:00:40]} 32. f3 {[%emt 0:23:23]} Rd2 {[%emt 0:00:54]} 33. Rg1 {[%emt 0:00:00]} Rb2 {[%emt 0:00:28]} 34. Ke5 {[%emt 0:00:00]} Rxb3 {[%emt 0:00:06]} 35. Kxf4 {[%emt 0:00:00]} Rb4 {[%emt 0:00:42]} 36. Rc1 {[%emt 0:00:00]} Rxa4 {[%emt 0:00:06]} 37. Kxg3 {[%emt 0:00:00]} Rb4 {[%emt 0:01:14]} 38. c5 {[%emt 0:00:00]} a4 {[%emt 0:00:29]} 39. c6 {[%emt 0:00:00]} bxc6 {[%emt 0:00:24]} 40. Rxc6 {[%emt 0:00:00]} h5 {[%emt 0:00:19]} 41. f4 {[%emt 0:00:00]} Kg7 {[%emt 0:00:17]} 42. Ra6 {[%emt 0:00:00]} Rc4 {[%emt 0:00:59]} 43. Kh4 {[%emt 0:00:00]} Rxf4+ {[%emt 0:00:26]} 44. Kxh5 {[%emt 0:00:00]} Rb4 {[%emt 0:00:34]} 45. g4 {[%emt 0:00:00]} Rb3 {[%emt 0:00:28]} 46. h4 {[%emt 0:00:00]} Rb5+ {[%emt 0:00:18]} 47. g5 {[%emt 0:00:00]} Rb4 {[%emt 0:00:03]} 48. Ra7+ {[%emt 0:00:00]} Kf8 {[%emt 0:00:04]} 49. g6 {[%emt 0:00:00]} Kg8 {[%emt 0:00:05]} 50. Kg5 {[%emt 0:00:00]} Rc4 {[%emt 0:01:55]} 51. h5 {[%emt 0:00:00]} Kf8 {[%emt 0:00:36]} 52. Ra8+ {[%emt 0:00:00]} Ke7 {[%emt 0:00:35]} 1-0

[Event "Paracin Open 2022"]
[Site "Paracin"]
[Date "2022.07.11"]
[Round "4.9"]
[White "Ibadov, Dashgyn"]
[Black "Srihari L R"]
[Result "1/2-1/2"]
[ECO "B23"]
[WhiteElo "2262"]
[BlackElo "2431"]
[Annotator "ChessBase"]
[PlyCount "89"]
[EventDate "2022.07.08"]
[EventCountry "SRB"]
[SourceTitle "playchess.com"]
[Source "ChessBase"]
[SourceQuality "1"]
[TimeControl "5400+30"]

1. e4 {[%emt 0:00:03]} c5 {[%emt 0:00:36]} 2. Nc3 {[%emt 0:00:13]} e6 {[%emt 0:00:47]} 3. Nge2 {[%emt 0:00:27]} Nc6 {[%emt 0:00:41]} 4. g3 {[%emt 0:01:29]} d5 {[%emt 0:01:15]} 5. exd5 {[%emt 0:00:21]} exd5 {[%emt 0:00:09]} 6. d4 {[%emt 0:00:48]} Bg4 {[%emt 0:02:57]} 7. Bg2 {[%emt 0:01:08]} Nxd4 {[%emt 0:16:28]} 8. h3 {[%emt 0:01:13]} Bf3 {[%emt 0:02:05]} 9. Kf1 {[%emt 0:01:57]} Nf6 {[%emt 0:29:45]} 10. Bxf3 {[%emt 0:05:42]} Nxf3 {[%emt 0:00:01]} 11. Nf4 {[%emt 0:00:17]} Ne5 {[%emt 0:11:23]} 12. Nfxd5 {[%emt 0:01:30]} Nxd5 {[%emt 0:01:36]} 13. Nxd5 {[%emt 0:01:20]} Bd6 {[%emt 0:01:39]} 14. Kg2 {[%emt 0:03:38]} O-O {[%emt 0:00:07]} 15. Re1 {[%emt 0:02:14]} Nc6 {[%emt 0:05:53]} 16. Be3 {[%emt 0:08:42]} Re8 {[%emt 0:01:25]} 17. Qd2 {[%emt 0:01:35]} Bf8 {[%emt 0:03:54]} 18. Rad1 {[%emt 0:06:33]} Qd6 {[%emt 0:07:23]} 19. Qd3 {[%emt 0:17:43]} Rad8 {[%emt 0:01:08]} 20. c4 {[%emt 0:12:21]} Ne5 {[%emt 0:01:37]} 21. Qc2 {[%emt 0:00:55]} Qc6 {[%emt 0:01:42]} 22. b3 {[%emt 0:01:09]} Ng6 {[%emt 0:03:36]} 23. Rd2 {[%emt 0:08:17]} Re6 {[%emt 0:01:11]} 24. Qf5 {[%emt 0:11:07]} Rde8 {[%emt 0:01:20]} 25. Kf1 {[%emt 0:03:54]} Ne5 {[%emt 0:00:40]} 26. Red1 {[%emt 0:01:29]} g6 {[%emt 0:02:02]} 27. Qe4 {[%emt 0:02:35]} Bg7 {[%emt 0:00:14]} 28. a4 {[%emt 0:01:05]} b6 {[%emt 0:00:20]} 29. Qg2 {[%emt 0:00:56]} h6 {[%emt 0:02:14]} 30. Nf4 {[%emt 0:00:11]} R6e7 {[%emt 0:00:17]} 31. Qxc6 {[%emt 0:00:50]} Nxc6 {[%emt 0:00:05]} 32. Rd7 {[%emt 0:01:09]} Bd4 {[%emt 0:01:24]} 33. Rxe7 {[%emt 0:00:21]} Rxe7 {[%emt 0:00:24]} 34. Nd5 {[%emt 0:00:05]} Rb7 {[%emt 0:00:24]} 35. Bxh6 {[%emt 0:00:18]} a6 {[%emt 0:00:26]} 36. Re1 {[%emt 0:01:19]} b5 {[%emt 0:00:40]} 37. Re8+ {[%emt 0:00:28]} Kh7 {[%emt 0:00:01]} 38. Bg5 {[%emt 0:00:36]} Kg7 {[%emt 0:00:02]} 39. Ne7 {[%emt 0:03:22]} Na5 {[%emt 0:00:01]} 40. axb5 {[%emt 0:00:34]} axb5 {[%emt 0:00:04]} 41. Rg8+ {[%emt 0:00:22]} Kh7 {[%emt 0:00:01]} 42. Rf8 {[%emt 0:00:27]} Kg7 {[%emt 0:00:10]} 43. Rg8+ {[%emt 0:00:27]} Kh7 {[%emt 0:00:01]} 44. Rf8 {[%emt 0:00:36]} Kg7 {[%emt 0:00:01]} 45. Rg8+ {[%emt 0:00:49]} 1/2-1/2

[Event "Paracin Open 2022"]
[Site "Paracin"]
[Date "2022.07.11"]
[Round "4.10"]
[White "Isik, Alparslan"]
[Black "Savic, Miodrag R"]
[Result "1/2-1/2"]
[ECO "E05"]
[WhiteElo "2341"]
[BlackElo "2418"]
[Annotator "ChessBase"]
[PlyCount "39"]
[EventDate "2022.07.08"]
[EventCountry "SRB"]
[SourceTitle "playchess.com"]
[Source "ChessBase"]
[SourceQuality "1"]
[TimeControl "5400+30"]

1. Nf3 {[%emt 0:00:04]} Nf6 {[%emt 0:00:10]} 2. g3 {[%emt 0:00:07]} d5 {[%emt 0:00:32]} 3. Bg2 {[%emt 0:00:08]} e6 {[%emt 0:00:51]} 4. O-O {[%emt 0:00:44]} Be7 {[%emt 0:01:45]} 5. c4 {[%emt 0:00:11]} O-O {[%emt 0:00:15]} 6. d4 {[%emt 0:04:05]} dxc4 {[%emt 0:00:21]} 7. Qc2 {[%emt 0:00:07]} a6 {[%emt 0:00:20]} 8. a4 {[%emt 0:00:16]} Bd7 {[%emt 0:00:47]} 9. Ne5 {[%emt 0:00:34]} Nc6 {[%emt 0:00:22]} 10. Qxc4 {[%emt 0:00:59]} Nd5 {[%emt 0:01:07]} 11. Nxd7 {[%emt 0:03:42]} Na5 {[%emt 0:00:47]} 12. Qc2 {[%emt 0:00:08]} Nb4 {[%emt 0:00:20]} 13. Qc3 {[%emt 0:00:22]} Qxd7 {[%emt 0:00:10]} 14. Nd2 {[%emt 0:07:00]} Rad8 {[%emt 0:17:06]} 15. Nf3 {[%emt 0:12:42]} Nd5 {[%emt 0:01:51]} 16. Qc2 {[%emt 0:04:48]} Nb4 {[%emt 0:00:33]} 17. Qc3 {[%emt 0:02:16]} Nd5 {[%emt 0:03:58]} 18. Qc2 {[%emt 0:00:08]} Nb4 {[%emt 0:00:19]} 19. Qc3 {[%emt 0:00:08]} Nd5 {[%emt 0:00:46]} 20. Qc2 {[%emt 1:02:01]} 1/2-1/2

[Event "Paracin Open 2022"]
[Site "Paracin"]
[Date "2022.07.11"]
[Round "4.11"]
[White "Shahil Dey"]
[Black "Erdogmus, Yagiz Kaan"]
[Result "0-1"]
[ECO "B85"]
[WhiteElo "2402"]
[BlackElo "2373"]
[Annotator "ChessBase"]
[PlyCount "94"]
[EventDate "2022.07.08"]
[EventCountry "SRB"]
[SourceTitle "playchess.com"]
[Source "ChessBase"]
[SourceQuality "1"]
[TimeControl "5400+30"]

1. e4 {[%emt 0:00:01]} c5 {[%emt 0:00:04]} 2. Nf3 {[%emt 0:00:06]} e6 {[%emt 0:00:06]} 3. d4 {[%emt 0:00:12]} cxd4 {[%emt 0:00:05]} 4. Nxd4 {[%emt 0:00:06]} Nc6 {[%emt 0:00:07]} 5. Nc3 {[%emt 0:00:06]} Qc7 {[%emt 0:00:13]} 6. Be3 {[%emt 0:00:13]} a6 {[%emt 0:00:08]} 7. Be2 {[%emt 0:00:05]} Nf6 {[%emt 0:00:10]} 8. O-O {[%emt 0:00:07]} Be7 {[%emt 0:00:09]} 9. f4 {[%emt 0:00:14]} d6 {[%emt 0:00:05]} 10. Qe1 {[%emt 0:00:06]} O-O {[%emt 0:00:27]} 11. Kh1 {[%emt 0:00:07]} Nxd4 {[%emt 0:00:53]} 12. Bxd4 {[%emt 0:00:07]} b5 {[%emt 0:00:12]} 13. Qg3 {[%emt 0:00:05]} Bb7 {[%emt 0:00:18]} 14. a3 {[%emt 0:00:09]} Rad8 {[%emt 0:01:29]} 15. Bd3 {[%emt 0:00:08]} Bc6 {[%emt 0:00:19]} 16. Rf3 {[%emt 0:00:22]} Qd7 {[%emt 0:12:29]} 17. Raf1 {[%emt 0:00:08]} Nh5 {[%emt 0:32:02]} 18. Qg4 {[%emt 0:15:21]} Nf6 {[%emt 0:00:57]} 19. Qh3 {[%emt 0:07:37]} e5 {[%emt 0:19:58]} 20. fxe5 {[%emt 0:00:12]} dxe5 {[%emt 0:00:25]} 21. Bxe5 {[%emt 0:00:17]} Qxh3 {[%emt 0:00:08]} 22. Rxh3 {[%emt 0:00:08]} Ng4 {[%emt 0:05:58]} 23. Bf4 {[%emt 0:07:33]} Bc5 {[%emt 0:02:17]} 24. Rhf3 {[%emt 0:14:25]} Bd4 {[%emt 0:08:19]} 25. h3 {[%emt 0:08:04]} Ne5 {[%emt 0:05:01]} 26. Rg3 {[%emt 0:04:27]} Rfe8 {[%emt 0:04:02]} 27. Bg5 {[%emt 0:02:17]} Rd6 {[%emt 0:00:53]} 28. Bf4 {[%emt 0:12:18]} Rdd8 {[%emt 0:03:03]} 29. Be2 {[%emt 0:12:05]} Ng6 {[%emt 0:01:11]} 30. Bg5 {[%emt 0:02:59]} f6 {[%emt 0:01:14]} 31. Bd2 {[%emt 0:00:51]} Be5 {[%emt 0:00:19]} 32. Rd3 {[%emt 0:00:06]} Bxc3 {[%emt 0:00:21]} 33. Bxc3 {[%emt 0:02:00]} Bxe4 {[%emt 0:00:08]} 34. Rxd8 {[%emt 0:00:05]} Rxd8 {[%emt 0:00:04]} 35. a4 {[%emt 0:04:25]} Rd5 {[%emt 0:02:23]} 36. Rf2 {[%emt 0:01:12]} Rg5 {[%emt 0:01:19]} 37. Bf1 {[%emt 0:01:01]} bxa4 {[%emt 0:01:03]} 38. Bxa6 {[%emt 0:00:59]} Rc5 {[%emt 0:00:28]} 39. Re2 {[%emt 0:01:03]} f5 {[%emt 0:00:28]} 40. Bd3 {[%emt 0:04:40]} Nf4 {[%emt 0:00:26]} 41. Rd2 {[%emt 0:01:03]} Bxd3 {[%emt 0:00:39]} 42. cxd3 {[%emt 0:00:05]} a3 {[%emt 0:00:30]} 43. d4 {[%emt 0:00:28]} Rc4 {[%emt 0:00:26]} 44. Rf2 {[%emt 0:03:11]} Nd5 {[%emt 0:00:37]} 45. Rxf5 {[%emt 0:00:27]} a2 {[%emt 0:00:11]} 46. Rf1 {[%emt 0:00:09]} Nxc3 {[%emt 0:00:19]} 47. Ra1 {[%emt 0:00:16]} Rb4 {[%emt 0:00:05]} 0-1

[Event "Paracin Open 2022"]
[Site "Paracin"]
[Date "2022.07.11"]
[Round "4.12"]
[White "Zemlyanskii, Ivan"]
[Black "Petrov, Nikita"]
[Result "1/2-1/2"]
[ECO "A57"]
[WhiteElo "2269"]
[BlackElo "2558"]
[Annotator "ChessBase"]
[PlyCount "80"]
[EventDate "2022.07.08"]
[EventCountry "SRB"]
[SourceTitle "playchess.com"]
[Source "ChessBase"]
[SourceQuality "1"]
[TimeControl "5400+30"]

1. d4 {[%emt 0:00:04]} Nf6 {[%emt 0:00:12]} 2. c4 {[%emt 0:00:14]} c5 {[%emt 0:00:11]} 3. d5 {[%emt 0:00:16]} b5 {[%emt 0:00:07]} 4. Nf3 {[%emt 0:00:33]} b4 {[%emt 0:01:06]} 5. a3 {[%emt 0:02:30]} g6 {[%emt 0:00:29]} 6. axb4 {[%emt 0:01:31]} cxb4 {[%emt 0:00:07]} 7. g3 {[%emt 0:00:09]} Bg7 {[%emt 0:03:52]} 8. Bg2 {[%emt 0:00:20]} O-O {[%emt 0:01:58]} 9. O-O {[%emt 0:00:38]} a5 {[%emt 0:04:35]} 10. Be3 {[%emt 0:09:12]} d6 {[%emt 0:03:05]} 11. Nbd2 {[%emt 0:05:19]} Nbd7 {[%emt 0:20:08]} 12. h3 {[%emt 0:07:04]} Bb7 {[%emt 0:09:05]} 13. Nd4 {[%emt 0:08:20]} Qc7 {[%emt 0:05:29]} 14. Nb5 {[%emt 0:05:21]} Qb8 {[%emt 0:07:03]} 15. Qa4 {[%emt 0:18:59]} Rc8 {[%emt 0:06:23]} 16. Nd4 {[%emt 0:11:23]} Nc5 {[%emt 0:02:36]} 17. Qb5 {[%emt 0:05:36]} Qc7 {[%emt 0:04:10]} 18. N2b3 {[%emt 0:03:38]} Nxb3 {[%emt 0:02:54]} 19. Nxb3 {[%emt 0:00:01]} Rcb8 {[%emt 0:12:08]} 20. Bb6 {[%emt 0:08:37]} Qc8 {[%emt 0:00:10]} 21. Nxa5 {[%emt 0:02:13]} Nd7 {[%emt 0:04:22]} 22. Qxb4 {[%emt 0:04:47]} Nxb6 {[%emt 0:01:03]} 23. Qxb6 {[%emt 0:00:02]} Bxd5 {[%emt 0:00:26]} 24. Nc6 {[%emt 0:00:42]} Bxc6 {[%emt 0:05:22]} 25. Qxc6 {[%emt 0:00:13]} Qxc6 {[%emt 0:00:44]} 26. Bxc6 {[%emt 0:00:05]} Rxa1 {[%emt 0:00:02]} 27. Rxa1 {[%emt 0:00:08]} Bxb2 {[%emt 0:00:04]} 28. Ra8 {[%emt 0:00:36]} Rxa8 {[%emt 0:00:04]} 29. Bxa8 {[%emt 0:00:05]} Kg7 {[%emt 0:00:07]} 30. e3 {[%emt 0:00:21]} e6 {[%emt 0:00:07]} 31. Kg2 {[%emt 0:00:09]} f5 {[%emt 0:00:06]} 32. Bb7 {[%emt 0:00:11]} Kf6 {[%emt 0:00:05]} 33. Kf3 {[%emt 0:00:05]} g5 {[%emt 0:00:10]} 34. g4 {[%emt 0:00:11]} h6 {[%emt 0:00:17]} 35. Bc8 {[%emt 0:00:06]} Bc3 {[%emt 0:00:13]} 36. Bd7 {[%emt 0:00:05]} Bb4 {[%emt 0:00:06]} 37. Bc8 {[%emt 0:00:04]} Bc3 {[%emt 0:00:03]} 38. Bd7 {[%emt 0:00:06]} Bb4 {[%emt 0:00:02]} 39. Bc8 {[%emt 0:00:08]} Bc3 {[%emt 0:00:04]} 40. Bd7 {[%emt 0:00:04]} Bb4 {[%emt 0:00:03]} 1/2-1/2

[Event "Paracin Open 2022"]
[Site "Paracin"]
[Date "2022.07.11"]
[Round "4.13"]
[White "Tsaknakis, Zisis"]
[Black "Zanan, Evgeny"]
[Result "1-0"]
[ECO "B97"]
[WhiteElo "2266"]
[BlackElo "2521"]
[Annotator "ChessBase"]
[PlyCount "85"]
[EventDate "2022.07.08"]
[EventCountry "SRB"]
[SourceTitle "playchess.com"]
[Source "ChessBase"]
[SourceQuality "1"]
[TimeControl "5400+30"]

1. e4 {[%emt 0:00:17]} c5 {[%emt 0:01:43]} 2. Nf3 {[%emt 0:00:03]} d6 {[%emt 0:00:05]} 3. d4 {[%emt 0:00:11]} cxd4 {[%emt 0:00:06]} 4. Nxd4 {[%emt 0:00:05]} Nf6 {[%emt 0:00:05]} 5. Nc3 {[%emt 0:00:05]} a6 {[%emt 0:00:03]} 6. Bg5 {[%emt 0:00:07]} e6 {[%emt 0:00:52]} 7. f4 {[%emt 0:00:03]} h6 {[%emt 0:01:51]} 8. Bh4 {[%emt 0:00:03]} Qb6 {[%emt 0:00:05]} 9. Qd2 {[%emt 0:00:10]} Qxb2 {[%emt 0:00:04]} 10. Rb1 {[%emt 0:00:05]} Qa3 {[%emt 0:00:03]} 11. e5 {[%emt 0:00:07]} dxe5 {[%emt 0:01:48]} 12. fxe5 {[%emt 0:00:03]} Nfd7 {[%emt 0:00:03]} 13. Ne4 {[%emt 0:00:17]} Qxa2 {[%emt 0:00:12]} 14. Rd1 {[%emt 0:02:11]} Qd5 {[%emt 0:00:04]} 15. Qe3 {[%emt 0:00:11]} Qxe5 {[%emt 0:00:27]} 16. c3 {[%emt 0:00:22]} Bc5 {[%emt 0:20:04]} 17. Bg3 {[%emt 0:01:30]} Qd5 {[%emt 0:01:35]} 18. Bd6 {[%emt 0:00:03]} Bxd6 {[%emt 0:29:59]} 19. Nb5 {[%emt 0:00:03]} Qe5 {[%emt 0:00:53]} 20. Nbxd6+ {[%emt 0:12:31]} Ke7 {[%emt 0:00:46]} 21. Nc4 {[%emt 0:11:19]} Qc7 {[%emt 0:05:14]} 22. Be2 {[%emt 0:08:19]} b5 {[%emt 0:11:49]} 23. Ncd6 {[%emt 0:05:42]} Nf6 {[%emt 0:09:33]} 24. Qg3 {[%emt 0:31:22]} Kf8 {[%emt 0:02:06]} 25. Nxf6 {[%emt 0:03:45]} gxf6 {[%emt 0:00:06]} 26. Qf3 {[%emt 0:01:37]} Nc6 {[%emt 0:02:41]} 27. Qxf6 {[%emt 0:00:27]} Rh7 {[%emt 0:00:03]} 28. O-O {[%emt 0:02:03]} Qe7 {[%emt 0:02:16]} 29. Qg6 {[%emt 0:02:23]} f5 {[%emt 0:03:11]} 30. Ne4 {[%emt 0:13:23]} Qf7 {[%emt 0:02:49]} 31. Qg3 {[%emt 0:00:23]} Bb7 {[%emt 0:02:08]} 32. Nc5 {[%emt 0:01:53]} Rg7 {[%emt 0:02:54]} 33. Qd6+ {[%emt 0:01:15]} Kg8 {[%emt 0:00:04]} 34. Nxb7 {[%emt 0:01:25]} Qxb7 {[%emt 0:00:03]} 35. Qxe6+ {[%emt 0:00:22]} Kh7 {[%emt 0:00:02]} 36. Bf3 {[%emt 0:01:57]} Rc8 {[%emt 0:02:00]} 37. Rd6 {[%emt 0:00:23]} Qa7+ {[%emt 0:00:15]} 38. Kh1 {[%emt 0:00:09]} Ne7 {[%emt 0:00:01]} 39. Qxh6+ {[%emt 0:01:07]} Kg8 {[%emt 0:00:02]} 40. Bd5+ {[%emt 0:01:04]} Nxd5 {[%emt 0:00:04]} 41. Qe6+ {[%emt 0:00:07]} Qf7 {[%emt 0:00:26]} 42. Qxc8+ {[%emt 0:00:03]} Kh7 {[%emt 0:00:00]} 43. Rxf5 {[%emt 0:01:12]} 1-0